Cogmind - Beta 11.1 @@@ ROGUE MODE // 2022.05.16 @ 10:17:49 Player: Sara Result: Destroyed by H-55 Commando with Gauss Rifle Performance ------------- Evolutions (3) 1500 Regions Visited (9) 1800 Robots Destroyed (29) 145 Value Destroyed (559) 559 Prototype IDs (2) 40 Alien Tech Used (0) 0 Bonus (0) 0 TOTAL SCORE: 4044 Bonus ------- None Cogmind --------- Core Integrity 0/700 Matter 300/300 Energy 240/240 System Corruption 1% Temperature Cool (0) Movement Core (50) Location -7/Lower Caves Parts ------- > --- POWER (1) -------- Nuclear Core > --- PROPULSION (2) --- (None) > --- UTILITY (8) ------ Advanced Weight Redist. System Advanced Visual Processing Unit Improved Sensor Array Signal Interpreter Advanced Terrain Scan Processor Transport Network Coupler Improved Melee Analysis Suite > --- WEAPON (2) ------- Great Axe > --- INVENTORY (5) ---- Micro Nuclear Core Improved Sensor Array Autogun Autogun Makeshift Hammer Peak State ------------ > --- POWER ------------ Light Nuclear Core > --- PROPULSION ------- (None) > --- UTILITY ---------- Experimental Heat Sink Advanced Weight Redist. System Signal Interpreter Advanced Terrain Scan Processor Improved Melee Analysis Suite Corruption Screen System Restoration Module > --- WEAPON ----------- Greatsword > --- INVENTORY -------- Autogun Autogun [Rating: 38] Favorites ----------- Power Light Ion Engine Engine Light Ion Engine Power Core Light Nuclear Core Propulsion None Utility Signal Interpreter Device Advanced Weight Redist. System Processor Signal Interpreter Weapon Makeshift Axe Ballistic Gun Assault Rifle Impact Weapon Great Maul Slashing Weapon Makeshift Axe Special Melee Weapon Datajack Build | -11 -10 -10 -10 -9 -8 -7 -7 -7 -7 ------- Run | Scr Mat Min Exi Min Mat Fac Was Fac Low Slots Evolved 6 | . . . . . 4 2 . . . Power . | . . . . . . . . . . Propulsion . | . . . . . . . . . . Utility 6 | . . . . . 4 2 . . . Weapon . | . . . . . . . . . . Parts Attached 48 | 1 9 5 3 . 6 15 1 8 . Power 6 | . . 1 . . . 4 . 1 . Engine 1 | . . 1 . . . . . . . Core 5 | . . . . . . 4 . 1 . Reactor . | . . . . . . . . . . Propulsion . | . . . . . . . . . . Treads . | . . . . . . . . . . Leg . | . . . . . . . . . . Wheel . | . . . . . . . . . . Hover . | . . . . . . . . . . Flight . | . . . . . . . . . . Utility 19 | . 4 . 1 . 4 6 1 3 . Device 9 | . 1 . . . 3 3 1 1 . Storage . | . . . . . . . . . . Processor 10 | . 3 . 1 . 1 3 . 2 . Hackware . | . . . . . . . . . . Protection . | . . . . . . . . . . Artifact . | . . . . . . . . . . Weapon 23 | 1 5 4 2 . 2 5 . 4 . Energy Gun . | . . . . . . . . . . Energy Cannon . | . . . . . . . . . . Ballistic Gun 13 | 1 5 3 . . 1 1 . 2 . Ballistic Cannon . | . . . . . . . . . . Launcher . | . . . . . . . . . . Special Weapon . | . . . . . . . . . . Impact Weapon 1 | . . . . . 1 . . . . Slashing Weapon 7 | . . . 1 . . 4 . 2 . Piercing Weapon . | . . . . . . . . . . Special Melee Weapon 2 | . . 1 1 . . . . . . Unidentified Prototypes 2 | . . . . . . 1 1 . . Parts Lost 14 | . 1 . . . . 8 1 4 . Power 3 | . . . . . . 2 . 1 . Propulsion . | . . . . . . . . . . Utility 9 | . . . . . . 6 1 2 . Weapon 2 | . 1 . . . . . . 1 . Highest Loss Streak 3 | . 1 . . . . 3 1 2 . To Critical Strikes . | . . . . . . . . . . Average Slot Usage (%) 53 | . 42 41 60 58 62 44 63 65 69 Engine 7 | . . 11 14 14 9 1 . . . Core 1 | . . . . . . 1 7 6 7 Device 7 | . 10 . . . 26 10 17 16 15 Processor 26 | . 16 28 28 28 18 26 30 34 38 Ballistic Gun 3 | . 15 1 . . 2 . . . . Slashing Weapon 5 | . . . 11 14 . 1 7 6 7 Special Melee Weapon 1 | . . . 6 1 . . . . . Naked Turns . | . . . . . . . . . . Heaviest Build 12 | 2 6 6 7 7 9 11 11 12 12 Greatest Support 12 | 3 3 3 3 3 9 12 12 12 12 Greatest Overweight (x) 2 | . 1 1 2 2 . 2 . . . Average Overweight (x) . | . . . 1 1 . . . . . Largest Inventory Capacity 5 | 5 5 5 5 5 5 5 5 5 5 Average Capacity 5 | 5 5 5 5 5 5 5 5 5 5 Most Carried 5 | 4 5 5 5 5 5 5 2 5 5 Average Carried 4 | 2 4 4 4 4 3 4 2 4 4 Final Capacity 5 | 5 5 5 5 5 5 5 5 5 5 Final Carried 5 | 4 5 5 4 5 5 2 2 4 5 Class Distribution -------------------- 47% | Mutant 38% | Commander-Mutant 10% | Scout 3% | Gladiator Dominant Class ---------------- Mutant | -10/Materials Mutant | -10/Mines Commander-Mutant | -10/Exiles Commander-Mutant | -9/Mines Commander-Mutant | -8/Materials Mutant | -7/Factory Gladiator | -7/Waste Scout | -7/Factory Scout | -7/Lower Caves Resources | -11 -10 -10 -10 -9 -8 -7 -7 -7 -7 ----------- Run | Scr Mat Min Exi Min Mat Fac Was Fac Low Matter Collected 939 | 210 288 108 . . . 214 . 110 9 Remotely . | . . . . . . . . . . Salvage Created 1006 | . 422 68 . . . 317 . 199 . Parts 68 | . 24 12 . . . 18 . 14 . Haulers Intercepted 2 | . 1 . . . . . . 1 . Recyclers Shooed . | . . . . . . . . . . Parts Field Recycled . | . . . . . . . . . . Retrieved Matter . | . . . . . . . . . . Parts Self-Destructed . | . . . . . . . . . . Prevented . | . . . . . . . . . . Kills | -11 -10 -10 -10 -9 -8 -7 -7 -7 -7 ------- Run | Scr Mat Min Exi Min Mat Fac Was Fac Low Combat Hostiles Destroyed 21 | . 12 3 . . . 5 . 1 . Melee 5 | . . . . . . 5 . . . Guns 16 | . 12 3 . . . . . 1 . Classes Destroyed 7 | . 3 1 . . . 2 . 1 . Worker 2 | . . . . . . . . 2 . Builder 1 | . . . . . . 1 . . . Tunneler 1 | . . 1 . . . . . . . Hauler 2 | . 1 . . . . . . 1 . Recycler 2 | . . . . . . 1 . 1 . Swarmer 12 | . 6 3 . . . 2 . 1 . Grunt 9 | . 6 . . . . 3 . . . Best Kill Streak 5 | . 5 3 . . . 3 . 2 . Combat Bots Only 5 | . 5 3 . . . 3 . 1 . Max Kills in Single Turn 1 | . 1 1 . . . 1 . 1 . Gunslinging . | . . . . . . . . . . Exploded . | . . . . . . . . . . Melee 1 | . . . . . . 1 . . . Uniques/NPCs Destroyed . | . . . . . . . . . . Combat | -11 -10 -10 -10 -9 -8 -7 -7 -7 -7 -------- Run | Scr Mat Min Exi Min Mat Fac Was Fac Low Damage Taken 1668 | . 377 41 . . . 877 35 316 22 Core 875 | . 148 27 . . . 489 . 189 22 Absorbed by Shields . | . . . . . . . . . . Core Remaining (%) 76 | 100 . . . 30 100 . . . . Volleys Fired 46 | . 36 4 . . . 1 . 5 . Largest 2 | . 2 2 . . . 1 . 2 . Hottest 46 | . 43 46 . . . 23 . 46 . Shots Fired 87 | . 69 7 . . . 1 . 10 . Gun 87 | . 69 7 . . . 1 . 10 . Cannon . | . . . . . . . . . . Launcher . | . . . . . . . . . . Special . | . . . . . . . . . . Kinetic 87 | . 69 7 . . . 1 . 10 . Thermal . | . . . . . . . . . . Explosive . | . . . . . . . . . . Electromagnetic . | . . . . . . . . . . Robot Hit Streak 12 | . 12 2 . . . 3 . 4 . Robot Miss Streak 3 | . 3 2 . . . . . 2 . Penetration Max . | . . . . . . . . . . Secondary Targets 3 | . 2 1 . . . . . . . Max Gunslinging Chain 1 | . 1 1 . . . . . . . Shots Hit Robots 78 | . 49 6 4 . 1 8 . 9 1 Core Hits 34 | . 19 4 . . . 7 . 4 . Critical Kills . | . . . . . . . . . . Critical Parts Destroyed 2 | . 1 . . . 1 . . . . Critical Strikes 3 | . 1 . . . 1 1 . . . Destroy 1 | . 1 . . . . . . . . Smash 1 | . . . . . 1 . . . . Sever 1 | . . . . . . 1 . . . Melee Attacks 36 | . . 2 4 . 4 12 . 11 3 Impact 8 | . . . . . 4 4 . . . Slashing 23 | . . . 1 . . 8 . 11 3 Piercing . | . . . . . . . . . . Sneak Attacks 13 | . . 2 4 . 1 1 . 4 1 Combat Hostiles 5 | . . . 4 . . . . . 1 Follow-up Attacks . | . . . . . . . . . . Damage Inflicted 1822 | . 682 56 75 . 118 392 . 433 66 Guns 834 | . 682 56 . . . 15 . 81 . Cannons . | . . . . . . . . . . Explosions . | . . . . . . . . . . Melee 988 | . . . 75 . 118 377 . 352 66 Ramming . | . . . . . . . . . . Kinetic 834 | . 682 56 . . . 15 . 81 . Thermal . | . . . . . . . . . . Explosive . | . . . . . . . . . . Electromagnetic . | . . . . . . . . . . Impact 118 | . . . . . 118 . . . . Slashing 870 | . . . 75 . . 377 . 352 66 Piercing . | . . . . . . . . . . Highest Corruption 1 | . . . . . . . . 1 1 Average Corruption 1 | . . . . . . . . 1 1 Corruption Purged . | . . . . . . . . . . Corruption Blocked 5 | . . . . . . . 5 . . Effects 1 | . . . . . . . . 1 . Matter Fused 1 | . . . . . . . . 1 . Overload Shots . | . . . . . . . . . . Overflow Damage 199 | . . . 3 . 118 . . 78 . Projectiles . | . . . . . . . . . . Explosions . | . . . . . . . . . . Melee 199 | . . . 3 . 118 . . 78 . Knockbacks . | . . . . . . . . . . Impact . | . . . . . . . . . . Kinetic . | . . . . . . . . . . Secondary . | . . . . . . . . . . Self-Inflicted Damage . | . . . . . . . . . . Shots . | . . . . . . . . . . Rammed . | . . . . . . . . . . Targets Rammed . | . . . . . . . . . . Kicked . | . . . . . . . . . . Crushed . | . . . . . . . . . . Highest Temperature 12 | . 7 12 . . . . . . . Average Temperature 4 | . 2 6 . . . . . . . Received Heat Transfer 480 | . 123 15 . . . 273 . 69 . Siege Activations . | . . . . . . . . . . Robots Corrupted . | . . . . . . . . . . Combat Hostiles . | . . . . . . . . . . Parts Fried . | . . . . . . . . . . Impact Corruptions 1 | . . . . . 1 . . . . Robots Melted . | . . . . . . . . . . Combat Hostiles . | . . . . . . . . . . Parts Melted . | . . . . . . . . . . Heat Transferred . | . . . . . . . . . . Parts Sabotaged . | . . . . . . . . . . Parts Stolen . | . . . . . . . . . . Parts Stripped . | . . . . . . . . . . Power Chain Reactions . | . . . . . . . . . . Missiles Intercepted . | . . . . . . . . . . Alert | -11 -10 -10 -10 -9 -8 -7 -7 -7 -7 ------- Run | Scr Mat Min Exi Min Mat Fac Was Fac Low Peak Influence 303 | . 303 188 . . 2 244 100 272 . Initial 85 | . . 23 . . . . 85 59 . Average 89 | . 102 122 . . . 101 89 121 . Maximum Alert Level 1 | . 1 . . . . 1 . 1 . Low Security (%) 90 | 100 74 100 . 100 100 94 100 86 . Level 1 9 | . 25 . . . . 5 . 13 . Level 2 . | . . . . . . . . . . Level 3 . | . . . . . . . . . . Level 4 . | . . . . . . . . . . Level 5 . | . . . . . . . . . . High Security . | . . . . . . . . . . Max Security . | . . . . . . . . . . Squads Dispatched 11 | . 2 . . . 1 5 . 3 . Investigation 5 | . . . . . 1 3 . 1 . Extermination . | . . . . . . . . . . Reinforcement 6 | . 2 . . . . 2 . 2 . Assault . | . . . . . . . . . . Garrison . | . . . . . . . . . . Intercept . | . . . . . . . . . . Searches Triggered . | . . . . . . . . . . Construction Impeded . | . . . . . . . . . . Haulers Reinforced . | . . . . . . . . . . Active Scanning Responses . | . . . . . . . . . . Cargo Convoy Interrupts . | . . . . . . . . . . Stealth | -11 -10 -10 -10 -9 -8 -7 -7 -7 -7 --------- Run | Scr Mat Min Exi Min Mat Fac Was Fac Low Distress Signals 3 | . 1 . . . . 1 . 1 . Communications Jammed . | . . . . . . . . . . Distress Signals . | . . . . . . . . . . Times Spotted 78 | . 27 7 . . 1 23 6 13 1 Peak Tracking Total 9 | . 8 3 . . 1 9 6 8 . Tactical Retreats 15 | . 3 2 . . . 6 . 4 . Traps | -11 -10 -10 -10 -9 -8 -7 -7 -7 -7 ------- Run | Scr Mat Min Exi Min Mat Fac Was Fac Low Traps Triggered 3 | . . . . . . 2 . 1 . Indirectly . | . . . . . . . . . . Trap Hack Attempts . | . . . . . . . . . . Triggered . | . . . . . . . . . . Disarmed . | . . . . . . . . . . Reprogrammed . | . . . . . . . . . . Reused . | . . . . . . . . . . Traps Extracted . | . . . . . . . . . . Installed . | . . . . . . . . . . Triggered . | . . . . . . . . . . Machines | -11 -10 -10 -10 -9 -8 -7 -7 -7 -7 ---------- Run | Scr Mat Min Exi Min Mat Fac Was Fac Low Machines Disabled . | . . . . . . . . . . Max in Single Turn . | . . . . . . . . . . Machines Sabotaged . | . . . . . . . . . . Garrisons Compromised . | . . . . . . . . . . Overloaded Fab Kills . | . . . . . . . . . . Hacking | -11 -10 -10 -10 -9 -8 -7 -7 -7 -7 --------- Run | Scr Mat Min Exi Min Mat Fac Was Fac Low Machines Accessed 14 | . 3 . 2 1 1 3 . 4 . Terminals 6 | . 2 . . . 1 1 . 2 . Fabricators 4 | . . . . . . 2 . 2 . Repair Stations . | . . . . . . . . . . Recycling Units 1 | . 1 . . . . . . . . Scanalyzers . | . . . . . . . . . . Garrison Access . | . . . . . . . . . . Total Hacks 42 | . 5 . 12 1 5 9 . 10 . Successful 23 | . 3 . 12 1 2 1 . 4 . Failed 19 | . 2 . . . 3 8 . 6 . Catastrophic 3 | . 1 . . . . 2 . . . Database Lockouts . | . . . . . . . . . . Manual 19 | . 1 . 2 . 2 6 . 8 . Terminals 18 | . 4 . . . 5 3 . 6 . Fabricators 10 | . . . . . . 6 . 4 . Repair Stations . | . . . . . . . . . . Recycling Units 1 | . 1 . . . . . . . . Scanalyzers . | . . . . . . . . . . Garrison Access . | . . . . . . . . . . Terminal Hacks 19 | . 3 . 12 1 1 . . 2 . Record 12 | . . . 12 . . . . . . Open Door 1 | . . . . 1 . . . . . Terminal Index 1 | . . . . . 1 . . . . Fabricator Index 1 | . . . . . . . . 1 . Unreport Threat 3 | . 3 . . . . . . . . Zone Layout 1 | . . . . . . . . 1 . Fabricator Hacks . | . . . . . . . . . . Repair Station Hacks . | . . . . . . . . . . Recycling Unit Hacks . | . . . . . . . . . . Scanalyzer . | . . . . . . . . . . Garrison Access Hacks . | . . . . . . . . . . Unauthorized Hacks 4 | . . . . . 1 1 . 2 . Terminals 2 | . . . . . 1 . . 1 . Botnet 1 | . . . . . . . . 1 . Operators 1 | . . . . . 1 . . . . Fabricators 2 | . . . . . . 1 . 1 . Fabnet 2 | . . . . . . 1 . 1 . Repair Stations . | . . . . . . . . . . Recycling Units . | . . . . . . . . . . Scanalyzers . | . . . . . . . . . . Garrison Access . | . . . . . . . . . . Data Cores Recovered . | . . . . . . . . . . Used . | . . . . . . . . . . Hacking Detections 9 | . 3 . . . 1 2 . 3 . Full Trace Events 4 | . . . . . 1 2 . 1 . Feedback Events 1 | . . . . . . . . 1 . Corruption 1 | . . . . . . . . 1 . Feedback Blocked . | . . . . . . . . . . Robot Schematics Acquired . | . . . . . . . . . . Robots Built . | . . . . . . . . . . Authchips . | . . . . . . . . . . Time . | . . . . . . . . . . Total Robot Build Rating . | . . . . . . . . . . Part Schematics Acquired . | . . . . . . . . . . Parts Built . | . . . . . . . . . . Authchips . | . . . . . . . . . . Time . | . . . . . . . . . . Total Part Build Rating . | . . . . . . . . . . Parts Repaired . | . . . . . . . . . . Time . | . . . . . . . . . . Parts Recycled . | . . . . . . . . . . Recycled Matter . | . . . . . . . . . . Retrieved Matter . | . . . . . . . . . . Retrieved Components . | . . . . . . . . . . Parts Scanalyzed . | . . . . . . . . . . Part Schematics Acquired . | . . . . . . . . . . Parts Damaged . | . . . . . . . . . . Bothacking | -11 -10 -10 -10 -9 -8 -7 -7 -7 -7 ------------ Run | Scr Mat Min Exi Min Mat Fac Was Fac Low Used RIF Installer . | . . . . . . . . . . Robots Hacked 2 | . . 2 . . . . . . . Non-combat . | . . . . . . . . . . Combat 2 | . . 2 . . . . . . . Robot Hacks Applied 2 | . . 2 . . . . . . . parse_system 2 | . . 2 . . . . . . . Relay Couplers Released . | . . . . . . . . . . Fabnet Peak Effective % . | . . . . . . . . . . Robots Rewired 5 | . . . 5 . . . . . . Allies Hacked . | . . . . . . . . . . Hacks Repelled . | . . . . . . . . . . Allies | -11 -10 -10 -10 -9 -8 -7 -7 -7 -7 -------- Run | Scr Mat Min Exi Min Mat Fac Was Fac Low Total Allies 7 | . . . 5 . . . 1 . 1 Largest Group 5 | . . . 5 5 5 5 1 . 1 Highest-Rated Group 127 | . . . 65 65 65 65 31 . 127 Highest-Rated Ally 127 | . . . 21 21 21 21 31 . 127 Total Orders 3 | . . . . . . 3 . . . STAY 2 | . . . . . . 2 . . . FOLLOW 1 | . . . . . . 1 . . . Ally Attacks 14 | . . . . . . 5 9 . . Total Damage 236 | . . . . . . 68 168 . . Kills 1 | . . . . . . 1 . . . Allies Corrupted . | . . . . . . . . . . Allies Melted . | . . . . . . . . . . Intel | -11 -10 -10 -10 -9 -8 -7 -7 -7 -7 ------- Run | Scr Mat Min Exi Min Mat Fac Was Fac Low Robot Analysis Total . | . . . . . . . . . . Derelict Logs Recovered 2 | . . 1 . 1 . . . . . Drone Launches . | . . . . . . . . . . Drone Recoveries . | . . . . . . . . . . Exploration | -11 -10 -10 -10 -9 -8 -7 -7 -7 -7 ------------- Run | Scr Mat Min Exi Min Mat Fac Was Fac Low Turns Passed 2897 | 29 520 365 862 151 179 360 65 251 115 Spaces Moved 3414 | 43 581 614 733 134 164 539 112 364 130 Core 3414 | 43 581 614 733 134 164 539 112 364 130 Treads . | . . . . . . . . . . Legs . | . . . . . . . . . . Wheels . | . . . . . . . . . . Hover . | . . . . . . . . . . Flight . | . . . . . . . . . . Fastest Speed 50 | 50 50 50 50 100 50 50 50 50 50 Average Speed 65 | 50 53 50 106 105 50 51 50 50 50 Slowest Speed 150 | 50 100 100 150 150 50 150 50 50 50 Overloaded Moves . | . . . . . . . . . . Propulsion Burnouts . | . . . . . . . . . . Robots Hopped . | . . . . . . . . . . Cave-ins Triggered . | . . . . . . . . . . Exploration Rate (%) 45 | 3 82 98 89 36 17 20 79 13 15 Regions Visited 9 Branch Regions 4 Pre-discovered Areas 2 | . . 1 1 . . . . . . Known Exits Taken 6 | . 1 1 1 1 1 . . 1 . Unknown Exits Taken 1 | 1 . . . . . . . . . Scrap Searched 2 | . . 1 . . . . . . 1 Spaces Dug 16 | . . . . . 2 5 . 7 2 Terrain Destroyed 16 | . . . . . 2 5 . 7 2 Melee 16 | . . . . . 2 5 . 7 2 Projectile . | . . . . . . . . . . AOE . | . . . . . . . . . . Terrain Rammed . | . . . . . . . . . . Walls Destroyed . | . . . . . . . . . . Machines Disabled . | . . . . . . . . . . Actions | -11 -10 -10 -10 -9 -8 -7 -7 -7 -7 --------- Run | Scr Mat Min Exi Min Mat Fac Was Fac Low Total 3948 | 50 729 665 809 144 251 602 119 403 176 Wait 291 | . 87 32 2 10 75 25 7 11 42 Move 3406 | 42 580 613 732 133 163 539 111 363 130 Hop . | . . . . . . . . . . Pick Up 26 | 6 6 3 2 . 2 2 . 4 1 Fast Attach 18 | . 3 . 1 . 2 8 1 3 . Attach 25 | 1 5 5 2 . 3 6 . 3 . Detach 15 | . 5 4 . 1 1 3 . 1 . Swap 5 | . 1 . . . 1 1 . 2 . Drop 16 | 1 6 2 2 . . 5 . . . Fire 46 | . 36 4 . . . 1 . 5 . Melee 36 | . . 2 4 . 4 12 . 11 3 Ram . | . . . . . . . . . . Kick . | . . . . . . . . . . Crush . | . . . . . . . . . . Escape Stasis . | . . . . . . . . . . Rewire 64 | . . . 64 . . . . . . Trap . | . . . . . . . . . . Miscellaneous . | . . . . . . . . . . Route ------- -11/Scrapyard -10/Materials (discovered 3 exits: *Mat x2 / *Min) -10/Mines (discovered 3 exits: *Mat x2 / *Exi) -10/Exiles -9/Mines -8/Materials -7/Factory -7/Waste -7/Factory -7/Lower Caves History --------- Turn | Location | Event 12 | -11/Scrapyard | Discovered new exit (range 14) 30 | -11/Scrapyard | Entered Materials 302 | -10/Materials | Build established: Mutant 306 | -10/Materials | Discovered new exit (range 3) 419 | -10/Materials | Core integrity fell below 50% 448 | -10/Materials | Discovered new exit (range 6) 459 | -10/Materials | Identified exit to Materials 541 | -10/Materials | Discovered new exit (range 16) 549 | -10/Materials | Identified exit to Mines 550 | -10/Materials | Entered Mines 566 | -10/Mines | Learned location of Storage (-9) 681 | -10/Mines | Discovered exit to Materials (range 15) 683 | -10/Mines | Learned Materials security intel 749 | -10/Mines | Discovered exit to Materials (range 5) 844 | -10/Mines | Joined a pair of Derelicts in attacking an 0b10 outpost 912 | -10/Mines | Deemed a non-threat by the Exiles lab entrance 913 | -10/Mines | Discovered new exit (range 5) 914 | -10/Mines | Identified exit to Exiles 915 | -10/Mines | Entered Exiles 915 | -10/Exiles | Found Exiles lab destroyed 991 | -10/Exiles | Learned location of Zion (-7) 1344 | -10/Exiles | Build established: Commander-Mutant 1413 | -10/Exiles | Discovered new exit (range 12) 1773 | -10/Exiles | Identified exit to Mines 1777 | -10/Exiles | Entered Mines 1777 | -9/Mines | Accompanied by 5 allies 1861 | -9/Mines | Learned Materials trap positions 1873 | -9/Mines | Found the Drone Emporium 1908 | -9/Mines | Discovered new exit (range 13) 1919 | -9/Mines | Identified exit to Materials 1928 | -9/Mines | Entered Materials 1928 | -8/Materials | Accompanied by 5 allies 1928 | -8/Materials | Evolved 4 slots: Utility x4 1929 | -8/Materials | Loaded intel: 14 trap records 2033 | -8/Materials | Discovered new exit (range 16) 2086 | -8/Materials | Identified exit to Factory 2107 | -8/Materials | Entered Factory 2107 | -7/Factory | Accompanied by 5 allies 2107 | -7/Factory | Evolved 2 slots: Utility x2 2231 | -7/Factory | Lost 3 parts (2p1u) 2368 | -7/Factory | Core integrity fell below 50% 2467 | -7/Factory | Sucked down chute 2467 | -7/Factory | Entered Waste 2468 | -7/Waste | Met a frightened Derelict 2481 | -7/Waste | Spotted C-40 Crusher 2482 | -7/Waste | EMP discharged 2491 | -7/Waste | Spotted C-40 Crusher 2494 | -7/Waste | Spotted C-40 Crusher 2503 | -7/Waste | Spotted C-40 Crusher 2514 | -7/Waste | Spotted C-40 Crusher 2515 | -7/Waste | Spotted C-40 Crusher 2520 | -7/Waste | Crushed by Compactor (1 part destroyed) 2526 | -7/Waste | Discovered new exit (range 12) 2531 | -7/Waste | Identified exit to Factory 2532 | -7/Waste | Entered Factory 2681 | -7/Factory | Core integrity fell below 20% 2770 | -7/Factory | Discovered new exit (range 8) 2777 | -7/Factory | Identified exit to Lower Caves 2783 | -7/Factory | Entered Lower Caves 2845 | -7/Lower Caves | Encountered a Warlord checkpoint 2886 | -7/Lower Caves | Build established: Scout 2898 | -7/Lower Caves | Destroyed by H-55 Commando with Gauss Rifle Last Messages --------------- 02779_ R-06 Scavenger collects Lgt. Ion Engine. 02783_ System corrupted: Matter fused (-9). 02783_ R-06 Scavenger collects Wheel. LOCATION=LOWER CAVES GOAL=ESCAPE 02784_ F4-LBW(k) breaks down the debris. 02835_ Searching scrap... 02835_ Found Mak. Hammer. 02835_ Found Nuclear Core. 02835_ Found Thermal Generator. 02835_ Found 33 Matter. 02836_ Acquired 9 matter. 02836_ Acquired Mak. Hammer. 02845_ XV-0JT(M): "Estimated chance of a MAIN.C patrol making it through here: 0%. Unless they've got a Behemoth in tow, in which case it's probably closer to 100%." 02848_ GF-8SP(k) breaks down the debris. A strange signal echoes through the caves. 02897_ Sneak attack on H-55 Commando. 02898_ Penetrated by Slug. Map ----- +----------------------------------------------------+ | ?????????????????????????????????????????????????# | | ????????????????????????????????????????????????## | | ????????????????????????????????????????????????# | | ????????????????????????????????????????????????# | | ??????????????????????????????????????????????### | | ??????????????????????????????????????????????# | | ??????????????????????????????????????????????# | | ?????????????????????????????????????????????# ? | | ?????????????????????????????????????????????? ??? | | ?????????????????????????????????????????????????? | | ?????????????????????????????????????????????????? | | ?????????????????????????????????????????????????? | | ?????????????????????????????????????????????????? | | ?????????????????????????????????????????????????? | | ??????????????????????????????????????##?????????? | | ??????????????????????????????????????? ##????#### | | ?????????????????????????????????????### ##???# | | ?????????????????????????????????????? ##??# ## | | ???????????????????????????????????????# #??# ## | | ????????????????????#????????????????### #### | | ??????????????????##? ???????????????# ## | | ?????????????????## # ?????????????## # #? | | ????????????????## ########???### #######? | | ????????????????# % ##### # #????? | | ?????????????????# h # #??? # | | ?????????????#!%% ## ##@ ## ## | | ????????????????????????# ######## #### # # | | ????????????????????????# #???????####??# #? | | ????????????????????????# #?????????????#? # | | ???????????????????????#;#######??????????????#??# | | ???????????????????????##????????????????????????? | | ?????????????????????????????????????????????????? | | ?????????????????????????????????????????????????? | | ?????????????????????????????????????????????????? | | ?????????????????????????????????????????????????? | | ?????????????????????????????????????????????????? | | ?????????????????????????????????????????????????? | | ?????????????????????????????????????????????????? | | ?????????????????????????????????????????????????? | | ?????????????????????????????????????????????????? | | ?????????????????????????????????????????????????? | | ?????????????????????????????????????????????????? | | ?????????????????????????????????????????????????? | | ?????????????????????????????????????????????????? | | ?????????????????????????????????????????????????? | | ?????????????????????????????????????????????????? | | ?????????????????????????????????????????????????? | | ?????????????????????????????????????????????????? | | | | | +----------------------------------------------------+ Best States ------------- Heat Dissipation 34 Energy Generation 14 Energy Capacity 240 Matter Stores 300 Matter Capacity 300 Sight Range 20 Robot Scan Range 15 Terrain Scan Range 16 Terrain Scan Density 335 Additional Mass Support 9 Corruption Block 8 Evasion (%) 58 Targeting Accuracy 6 Melee Accuracy 6 Item Schematics ----------------- None Robot Schematics ------------------ None Fabricated ------------ Nothing Alien Tech Used ----------------- None Achievements -------------- None Challenges ------------ None Game ------ Seed InsulatedBattlePit Manual? 0 Play Time 00:38:26 Cumulative 105.3 hours Start 2022.05.16 @ 09:39:01 End 2022.05.16 @ 10:17:49 Sessions 1 Manual Loads 0 Difficulty Rogue Special Mode None Game No. 144 Rogue 144 Adventurer 0 Explorer 0 Win Type - Total 1 Types 1/0/0/0/0/0/0/0/0 Lore% 58 Gallery% 55 Achievement% 48 Wizard Run 0 Options --------- ASCII 0 Keyboard 0 Movement Numpad Keybinds 0 Fullscreen 1 Font 18/X11Bold Map View 76x50 Tactical HUD 1 Map Filters NONE Filters NONE Steam 1 RUN: 74009773-e7c4-4923-a7fe-db97475e4d92